[Event "4th Memorial Warakomska-A 2020"]
[Site "Suwalki"]
[Date "2020.08.09"]
[Round "5.7"]
[White "Bugajski, Robert"]
[Black "Rudzinska, Michalina"]
[Result "0-1"]
[ECO "A04"]
[WhiteElo "2081"]
[BlackElo "2080"]
[Annotator "ChessBase"]
[PlyCount "94"]
[EventDate "2020.08.06"]
[EventType "swiss"]
[EventCountry "POL"]
[SourceTitle "playchess.com"]
[Source "ChessBase"]
[SourceQuality "1"]
[TimeControl "40/5400+30:1800+30"]

1. Nf3 {[%emt 0:00:00]} c5 {[%emt 0:00:05]} 2. g3 {[%emt 0:00:02]} Nc6 {[%emt 0:00:39]} 3. Bg2 {[%emt 0:00:30]} g6 {[%emt 0:00:07]} 4. O-O {[%emt 0:00:38]} Bg7 {[%emt 0:00:07]} 5. c4 {[%emt 0:02:52]} d6 {[%emt 0:00:13]} 6. Nc3 {[%emt 0:00:37]} e5 {[%emt 0:02:08]} 7. d3 {[%emt 0:01:20]} Nge7 {[%emt 0:00:35]} 8. Rb1 {[%emt 0:02:29]} O-O {[%emt 0:00:35]} 9. a3 {[%emt 0:00:04]} f5 {[%emt 0:02:18]} 10. Bd2 {[%emt 0:03:14]} a5 {[%emt 0:04:04]} 11. Ne1 {[%emt 0:00:21]} Be6 {[%emt 0:02:33]} 12. Nd5 {[%emt 0:15:24]} Bxd5 {[%emt 0:13:08]} 13. cxd5 {[%emt 0:01:01]} Nb8 {[%emt 0:00:32]} 14. Nc2 {[%emt 0:02:21]} a4 {[%emt 0:06:12]} 15. Ne3 {[%emt 0:16:25]} f4 {[%emt 0:05:04]} 16. Nc2 {[%emt 0:00:58]} Nd7 {[%emt 0:00:39]} 17. e4 {[%emt 0:01:00]} fxe3 {[%emt 0:07:49]} 18. fxe3 {[%emt 0:01:14]} Rxf1+ {[%emt 0:03:10]} 19. Qxf1 {[%emt 0:00:03]} Qb6 {[%emt 0:00:43]} 20. Bh3 {[%emt 0:03:38]} Nf6 {[%emt 0:05:51]} 21. Be6+ {[%emt 0:00:52]} Kh8 {[%emt 0:00:08]} 22. e4 {[%emt 0:07:33]} c4+ {[%emt 0:02:14]} 23. Kg2 {[%emt 0:19:35]} Rf8 {[%emt 0:08:08]} 24. Qe2 {[%emt 0:02:16]} cxd3 {[%emt 0:00:09]} 25. Qxd3 {[%emt 0:00:30]} Nxe4 {[%emt 0:00:19]} 26. Be3 {[%emt 0:01:51]} Nc5 {[%emt 0:00:12]} 27. Bxc5 {[%emt 0:07:05]} Qxc5 {[%emt 0:00:12]} 28. Rf1 {[%emt 0:01:42]} Nf5 {[%emt 0:06:16]} 29. Bxf5 {[%emt 0:01:31]} gxf5 {[%emt 0:00:09]} 30. Rxf5 {[%emt 0:01:34]} Rxf5 {[%emt 0:00:14]} 31. Qxf5 {[%emt 0:00:05]} Qxd5+ {[%emt 0:00:07]} 32. Kh3 {[%emt 0:00:50]} Kg8 {[%emt 0:10:51]} 33. Qc8+ {[%emt 0:01:41]} Bf8 {[%emt 0:06:07]} 34. Qg4+ {[%emt 0:00:26]} Kf7 {[%emt 0:03:39]} 35. Qf5+ {[%emt 0:00:36]} Kg8 {[%emt 0:03:24]} 36. Qg4+ {[%emt 0:00:19]} Kh8 {[%emt 0:02:36]} 37. Qf5 {[%emt 0:00:27]} Qg8 {[%emt 0:00:44]} 38. Ne3 {[%emt 0:00:23]} Qg7 {[%emt 0:02:22]} 39. Ng4 {[%emt 0:02:06]} Be7 {[%emt 0:00:58]} 40. Qc8+ {[%emt 0:00:00]} Qf8 {[%emt 0:00:00]} 41. Qxb7 {[%emt 0:05:06]} Qf1+ {[%emt 0:05:26]} 42. Qg2 {[%emt 0:00:03]} Qf5 {[%emt 0:01:43]} 43. Qb7 {[%emt 0:07:35]} Bf6 {[%emt 0:09:43]} 44. Qa8+ {[%emt 0:02:47]} Kg7 {[%emt 0:00:09]} 45. Qb7+ {[%emt 0:04:32]} Kg6 {[%emt 0:00:23]} 46. Qc6 {[%emt 0:03:23]} Qh5+ {[%emt 0:01:03]} 47. Kg2 {[%emt 0:00:17]} Qxg4 {[%emt 0:00:11]} 0-1

[Event "4th Memorial Warakomska-A 2020"]
[Site "Suwalki"]
[Date "2020.08.09"]
[Round "5.8"]
[White "Szustakowski, Antoni"]
[Black "Kucza, Karol"]
[Result "1/2-1/2"]
[ECO "D31"]
[WhiteElo "2295"]
[BlackElo "2245"]
[Annotator "ChessBase"]
[PlyCount "131"]
[EventDate "2020.08.06"]
[EventType "swiss"]
[EventCountry "POL"]
[SourceTitle "playchess.com"]
[Source "ChessBase"]
[SourceQuality "1"]
[TimeControl "40/5400+30:1800+30"]

1. d4 {[%emt 0:00:00]} d5 {[%emt 0:00:00]} 2. c4 {[%emt 0:00:00]} e6 {[%emt 0:00:00]} 3. Nc3 {[%emt 0:00:00]} c6 {[%emt 0:00:00]} 4. e4 {[%emt 0:00:13]} dxe4 {[%emt 0:00:00]} 5. Nxe4 {[%emt 0:00:05]} Bb4+ {[%emt 0:00:00]} 6. Bd2 {[%emt 0:00:05]} Qxd4 {[%emt 0:00:03]} 7. Bxb4 {[%emt 0:00:03]} Qxe4+ {[%emt 0:00:09]} 8. Be2 {[%emt 0:00:03]} Na6 {[%emt 0:00:06]} 9. Ba5 {[%emt 0:00:12]} b6 {[%emt 0:00:39]} 10. Qd6 {[%emt 0:00:09]} Bd7 {[%emt 0:00:14]} 11. Bc3 {[%emt 0:01:16]} f6 {[%emt 0:12:29]} 12. Rd1 {[%emt 0:09:21]} O-O-O {[%emt 0:07:41]} 13. Qa3 {[%emt 0:09:56]} Kb7 {[%emt 0:00:29]} 14. c5 {[%emt 0:10:21]} Nc7 {[%emt 0:05:03]} 15. Nf3 {[%emt 0:04:02]} Nb5 {[%emt 0:12:01]} 16. Qb3 {[%emt 0:01:00]} Ne7 {[%emt 0:05:00]} 17. a4 {[%emt 0:06:43]} Nxc3 {[%emt 0:01:51]} 18. bxc3 {[%emt 0:00:05]} Bc8 {[%emt 0:09:29]} 19. Rb1 {[%emt 0:01:52]} Ka8 {[%emt 0:17:32]} 20. cxb6 {[%emt 0:26:24]} Ba6 {[%emt 0:00:05]} 21. Rb2 {[%emt 0:00:06]} Bxe2 {[%emt 0:08:45]} 22. Rxe2 {[%emt 0:00:06]} Qd5 {[%emt 0:00:03]} 23. b7+ {[%emt 0:06:26]} Kb8 {[%emt 0:00:05]} 24. Qc2 {[%emt 0:00:13]} e5 {[%emt 0:01:08]} 25. O-O {[%emt 0:00:48]} Qd3 {[%emt 0:01:37]} 26. Qb2 {[%emt 0:00:35]} Nd5 {[%emt 0:01:12]} 27. c4 {[%emt 0:06:06]} Nf4 {[%emt 0:01:28]} 28. Rd2 {[%emt 0:00:40]} Nh3+ {[%emt 0:01:51]} 29. gxh3 {[%emt 0:00:05]} Qxf3 {[%emt 0:00:03]} 30. Rfd1 {[%emt 0:02:56]} Qxd1+ {[%emt 0:00:26]} 31. Rxd1 {[%emt 0:00:04]} Rxd1+ {[%emt 0:00:11]} 32. Kg2 {[%emt 0:00:01]} Rd7 {[%emt 0:00:51]} 33. a5 {[%emt 0:01:00]} Rxb7 {[%emt 0:00:14]} 34. Qa3 {[%emt 0:00:03]} Rd8 {[%emt 0:00:54]} 35. a6 {[%emt 0:00:23]} Rc7 {[%emt 0:00:52]} 36. Qc5 {[%emt 0:02:56]} Kc8 {[%emt 0:03:10]} 37. h4 {[%emt 0:02:31]} Kd7 {[%emt 0:00:35]} 38. f4 {[%emt 0:06:33]} Ke6 {[%emt 0:01:04]} 39. fxe5 {[%emt 0:00:05]} fxe5 {[%emt 0:00:06]} 40. Kf3 {[%emt 0:00:00]} Rd4 {[%emt 0:00:00]} 41. h5 {[%emt 0:02:25]} Rh4 {[%emt 0:05:31]} 42. Ke3 {[%emt 0:00:31]} Rxh5 {[%emt 0:01:40]} 43. Qf8 {[%emt 0:00:28]} Rh3+ {[%emt 0:00:31]} 44. Ke4 {[%emt 0:00:06]} Rh4+ {[%emt 0:00:17]} 45. Kd3 {[%emt 0:00:45]} Rd4+ {[%emt 0:04:56]} 46. Kc3 {[%emt 0:00:45]} c5 {[%emt 0:02:59]} 47. Qg8+ {[%emt 0:02:31]} Kf6 {[%emt 0:00:26]} 48. Qf8+ {[%emt 0:00:43]} Kg5 {[%emt 0:02:14]} 49. Qe8 {[%emt 0:00:15]} Kf6 {[%emt 0:04:07]} 50. Qf8+ {[%emt 0:00:15]} Ke6 {[%emt 0:04:11]} 51. Qg8+ {[%emt 0:00:20]} Rf7 {[%emt 0:00:07]} 52. Qe8+ {[%emt 0:03:18]} Re7 {[%emt 0:00:30]} 53. Qc8+ {[%emt 0:00:13]} Rdd7 {[%emt 0:00:36]} 54. Qxc5 {[%emt 0:00:52]} e4 {[%emt 0:00:19]} 55. Qh5 {[%emt 0:01:22]} g6 {[%emt 0:02:06]} 56. Qh6 {[%emt 0:00:34]} Kf6 {[%emt 0:00:35]} 57. c5 {[%emt 0:01:09]} e3 {[%emt 0:00:21]} 58. c6 {[%emt 0:00:05]} Rc7 {[%emt 0:03:33]} 59. Qf4+ {[%emt 0:00:27]} Kg7 {[%emt 0:00:07]} 60. Qd4+ {[%emt 0:00:07]} Kf7 {[%emt 0:00:24]} 61. Qc4+ {[%emt 0:01:30]} Kf8 {[%emt 0:00:27]} 62. Qf4+ {[%emt 0:00:23]} Kg7 {[%emt 0:08:00]} 63. Qd4+ {[%emt 0:00:31]} Kf7 {[%emt 0:00:07]} 64. Qc4+ {[%emt 0:00:06]} Kf6 {[%emt 0:00:05]} 65. Qf4+ {[%emt 0:01:37]} Kg7 {[%emt 0:04:05]} 66. Qd4+ 1/2-1/2

[Event "4th Memorial Warakomska-A 2020"]
[Site "Suwalki"]
[Date "2020.08.09"]
[Round "5.9"]
[White "Jarocka, Liwia"]
[Black "Deruelle Sala, Albert"]
[Result "0-1"]
[ECO "B41"]
[WhiteElo "1934"]
[BlackElo "2078"]
[Annotator "ChessBase"]
[PlyCount "106"]
[EventDate "2020.08.06"]
[EventType "swiss"]
[EventCountry "POL"]
[SourceTitle "playchess.com"]
[Source "ChessBase"]
[SourceQuality "1"]
[TimeControl "40/5400+30:1800+30"]

1. e4 {[%emt 0:00:00]} c5 {[%emt 0:00:00]} 2. Nf3 {[%emt 0:00:00]} e6 {[%emt 0:00:00]} 3. d4 {[%emt 0:00:00]} cxd4 {[%emt 0:00:00]} 4. Nxd4 {[%emt 0:00:02]} a6 {[%emt 0:00:19]} 5. c4 {[%emt 0:01:21]} Nf6 {[%emt 0:00:15]} 6. Nc3 {[%emt 0:00:09]} Bb4 {[%emt 0:00:37]} 7. Qd3 {[%emt 0:00:43]} O-O {[%emt 0:01:20]} 8. Be2 {[%emt 0:02:28]} Nc6 {[%emt 0:03:56]} 9. Nxc6 {[%emt 0:10:47]} dxc6 {[%emt 0:00:30]} 10. O-O {[%emt 0:04:32]} Qxd3 {[%emt 0:00:21]} 11. Bxd3 {[%emt 0:00:04]} e5 {[%emt 0:00:09]} 12. Be3 {[%emt 0:02:00]} Be6 {[%emt 0:06:17]} 13. Na4 {[%emt 0:15:02]} b5 {[%emt 0:09:15]} 14. Bc5 {[%emt 0:04:38]} Rfd8 {[%emt 0:01:28]} 15. Bxb4 {[%emt 0:01:55]} Rxd3 {[%emt 0:02:56]} 16. Nc5 {[%emt 0:00:13]} Rd4 {[%emt 0:01:52]} 17. Nxe6 {[%emt 0:00:53]} fxe6 {[%emt 0:01:20]} 18. f3 {[%emt 0:00:39]} Rxc4 {[%emt 0:04:47]} 19. Bc3 {[%emt 0:00:36]} Rd8 {[%emt 0:03:11]} 20. Bxe5 {[%emt 0:01:54]} Rd2 {[%emt 0:01:14]} 21. Bc3 {[%emt 0:01:06]} Re2 {[%emt 0:04:11]} 22. a3 {[%emt 0:03:07]} Kf7 {[%emt 0:03:50]} 23. Rfc1 {[%emt 0:03:37]} Nd7 {[%emt 0:03:27]} 24. Kf1 {[%emt 0:00:12]} Re3 {[%emt 0:00:10]} 25. Kf2 {[%emt 0:00:23]} Rd3 {[%emt 0:00:41]} 26. Ke2 {[%emt 0:04:05]} Nc5 {[%emt 0:06:01]} 27. Rd1 {[%emt 0:06:06]} Rxd1 {[%emt 0:04:42]} 28. Rxd1 {[%emt 0:00:02]} Na4 {[%emt 0:01:28]} 29. Be5 {[%emt 0:08:02]} Nb6 {[%emt 0:07:08]} 30. Bc7 {[%emt 0:10:34]} Na4 {[%emt 0:01:22]} 31. Rd2 {[%emt 0:00:38]} Rc1 {[%emt 0:00:33]} 32. Be5 {[%emt 0:00:50]} Nb6 {[%emt 0:04:03]} 33. Bc3 {[%emt 0:05:12]} g6 {[%emt 0:03:37]} 34. Rd1 {[%emt 0:04:11]} Rxd1 {[%emt 0:01:56]} 35. Kxd1 {[%emt 0:00:01]} Nc4 {[%emt 0:02:56]} 36. Ke2 {[%emt 0:00:08]} c5 {[%emt 0:01:17]} 37. Kd3 {[%emt 0:00:40]} Ke7 {[%emt 0:00:21]} 38. a4 {[%emt 0:01:04]} Kd6 {[%emt 0:01:43]} 39. f4 {[%emt 0:01:21]} Kc6 {[%emt 0:01:08]} 40. g4 {[%emt 0:00:00]} Nd6 {[%emt 0:00:00]} 41. axb5+ {[%emt 0:02:33]} axb5 {[%emt 0:01:26]} 42. e5 {[%emt 0:01:29]} Nb7 {[%emt 0:03:37]} 43. Ke4 {[%emt 0:01:24]} b4 {[%emt 0:00:42]} 44. Bd2 {[%emt 0:00:28]} Na5 {[%emt 0:00:12]} 45. f5 {[%emt 0:01:10]} Nc4 {[%emt 0:08:25]} 46. Bc1 {[%emt 0:03:01]} gxf5+ {[%emt 0:03:27]} 47. gxf5 {[%emt 0:00:08]} exf5+ {[%emt 0:21:01]} 48. Kxf5 {[%emt 0:00:07]} Nb6 {[%emt 0:04:51]} 49. e6 {[%emt 0:05:09]} Nd5 {[%emt 0:00:16]} 50. Ke5 {[%emt 0:03:13]} c4 {[%emt 0:02:00]} 51. Kd4 {[%emt 0:01:21]} c3 {[%emt 0:01:13]} 52. bxc3 {[%emt 0:00:13]} bxc3 {[%emt 0:00:03]} 53. e7 {[%emt 0:00:19]} Nxe7 0-1

[Event "4th Memorial Warakomska-A 2020"]
[Site "Suwalki"]
[Date "2020.08.09"]
[Round "5.10"]
[White "Jakhari, Ansh"]
[Black "Budzisz, Adrian"]
[Result "1/2-1/2"]
[ECO "C08"]
[WhiteElo "1908"]
[BlackElo "1823"]
[Annotator "ChessBase"]
[PlyCount "149"]
[EventDate "2020.08.06"]
[EventType "swiss"]
[EventCountry "POL"]
[SourceTitle "playchess.com"]
[Source "ChessBase"]
[SourceQuality "1"]
[TimeControl "40/5400+30:1800+30"]

1. e4 e6 {[%emt 0:00:00]} 2. d4 {[%emt 0:00:00]} d5 {[%emt 0:00:00]} 3. Nd2 {[%emt 0:00:00]} c5 {[%emt 0:00:00]} 4. exd5 {[%emt 0:00:31]} exd5 {[%emt 0:00:00]} 5. Ngf3 {[%emt 0:00:12]} Nf6 {[%emt 0:00:00]} 6. Bd3 {[%emt 0:00:47]} c4 {[%emt 0:06:12]} 7. Be2 {[%emt 0:00:17]} Bd6 {[%emt 0:00:35]} 8. O-O {[%emt 0:00:19]} Nc6 {[%emt 0:00:12]} 9. Re1 {[%emt 0:01:02]} O-O {[%emt 0:00:07]} 10. Nf1 {[%emt 0:00:50]} h6 {[%emt 0:02:15]} 11. Ne3 {[%emt 0:03:11]} Be6 {[%emt 0:00:41]} 12. c3 {[%emt 0:01:47]} b5 {[%emt 0:01:18]} 13. g3 Qc7 {[%emt 0:06:28]} 14. Ng2 {[%emt 0:11:13]} Rfe8 {[%emt 0:02:52]} 15. Bf4 {[%emt 0:01:04]} Bf5 {[%emt 0:01:53]} 16. Nfh4 {[%emt 0:04:51]} Bh7 {[%emt 0:00:38]} 17. Bxd6 {[%emt 0:00:43]} Qxd6 {[%emt 0:00:09]} 18. Ne3 {[%emt 0:00:49]} Ne4 {[%emt 0:04:53]} 19. Bf3 {[%emt 0:03:14]} Rad8 {[%emt 0:08:04]} 20. Nhg2 {[%emt 0:04:59]} Ne7 {[%emt 0:07:23]} 21. a4 {[%emt 0:06:22]} a6 {[%emt 0:11:24]} 22. axb5 {[%emt 0:06:08]} axb5 {[%emt 0:00:04]} 23. Ra7 {[%emt 0:08:50]} Ng5 {[%emt 0:03:47]} 24. Bg4 {[%emt 0:01:42]} b4 {[%emt 0:06:39]} 25. Qa4 {[%emt 0:03:09]} bxc3 {[%emt 0:00:45]} 26. bxc3 {[%emt 0:00:37]} Ne4 {[%emt 0:00:57]} 27. Rc1 {[%emt 0:06:16]} f5 {[%emt 0:06:27]} 28. Be2 {[%emt 0:01:07]} Qb8 {[%emt 0:02:45]} 29. Nf4 {[%emt 0:01:55]} Qb2 {[%emt 0:04:57]} 30. Rc2 {[%emt 0:00:29]} Qb1+ {[%emt 0:00:10]} 31. Kg2 {[%emt 0:01:46]} Qe1 {[%emt 0:03:02]} 32. Bd1 {[%emt 0:03:15]} Nxc3 {[%emt 0:03:12]} 33. Qa5 {[%emt 0:10:14]} Nc6 {[%emt 0:00:51]} 34. Qc7 {[%emt 0:00:06]} Re7 {[%emt 0:00:36]} 35. Qxc6 {[%emt 0:00:05]} Rxa7 {[%emt 0:00:41]} 36. Qb6 {[%emt 0:00:25]} Rda8 {[%emt 0:00:32]} 37. Qb4 {[%emt 0:00:22]} Ra4 {[%emt 0:04:13]} 38. Qxc3 {[%emt 0:00:17]} Qxc3 {[%emt 0:00:04]} 39. Rxc3 {[%emt 0:00:06]} Ra3 {[%emt 0:00:11]} 40. Nfxd5 {[%emt 0:00:00]} f4 {[%emt 0:00:00]} 41. Nxc4 {[%emt 0:07:57]} Be4+ {[%emt 0:05:54]} 42. Kh3 {[%emt 0:06:11]} Bf5+ {[%emt 0:04:23]} 43. g4 {[%emt 0:02:10]} Rxc3+ {[%emt 0:00:23]} 44. Nxc3 {[%emt 0:00:05]} Bd3 {[%emt 0:00:37]} 45. Bb3 {[%emt 0:01:34]} Bf1+ {[%emt 0:00:28]} 46. Kh4 {[%emt 0:00:06]} g5+ {[%emt 0:01:49]} 47. Kh5 {[%emt 0:00:05]} Kg7 {[%emt 0:00:06]} 48. Ne4 {[%emt 0:05:40]} Bxc4 {[%emt 0:03:36]} 49. Bxc4 {[%emt 0:00:05]} Ra3 {[%emt 0:00:47]} 50. Bf1 {[%emt 0:01:23]} Ra4 {[%emt 0:00:24]} 51. Nd6 {[%emt 0:00:24]} Ra2 {[%emt 0:00:10]} 52. Nf5+ {[%emt 0:00:55]} Kf6 {[%emt 0:00:03]} 53. Nd6 {[%emt 0:02:18]} Kg7 {[%emt 0:00:46]} 54. Ne4 {[%emt 0:01:03]} Ra4 {[%emt 0:00:16]} 55. Nc5 {[%emt 0:01:41]} Ra2 {[%emt 0:00:44]} 56. Nd3 {[%emt 0:00:15]} Ra1 {[%emt 0:01:01]} 57. Bg2 {[%emt 0:00:15]} Rd1 {[%emt 0:00:28]} 58. Be4 {[%emt 0:04:28]} f3 {[%emt 0:01:36]} 59. Ne5 {[%emt 0:05:45]} Rxd4 {[%emt 0:00:29]} 60. Bxf3 {[%emt 0:00:03]} Rd2 {[%emt 0:00:18]} 61. h4 {[%emt 0:02:36]} Rxf2 {[%emt 0:00:11]} 62. Ng6 {[%emt 0:02:56]} Rxf3 {[%emt 0:01:56]} 63. hxg5 {[%emt 0:00:05]} hxg5 {[%emt 0:00:40]} 64. Kxg5 {[%emt 0:00:06]} Ra3 {[%emt 0:00:21]} 65. Ne5 {[%emt 0:00:16]} Ra5 {[%emt 0:00:19]} 66. Kf5 {[%emt 0:00:05]} Ra1 {[%emt 0:00:21]} 67. g5 {[%emt 0:00:10]} Rf1+ {[%emt 0:00:09]} 68. Kg4 {[%emt 0:00:06]} Rf2 {[%emt 0:01:13]} 69. Kg3 {[%emt 0:00:55]} Rf5 {[%emt 0:00:24]} 70. Nf3 {[%emt 0:00:05]} Ra5 {[%emt 0:00:16]} 71. Kg4 {[%emt 0:00:06]} Ra4+ {[%emt 0:00:27]} 72. Kf5 {[%emt 0:00:06]} Ra1 {[%emt 0:00:18]} 73. Ne5 {[%emt 0:00:04]} Re1 {[%emt 0:00:44]} 74. Kf4 {[%emt 0:00:07]} Rf1+ {[%emt 0:00:16]} 75. Kg4 {[%emt 0:00:05]} 1/2-1/2

[Event "4th Memorial Warakomska-A 2020"]
[Site "Suwalki"]
[Date "2020.08.09"]
[Round "5.11"]
[White "Leskiewicz, Ignacy"]
[Black "Choroszej, Aleksander"]
[Result "1-0"]
[ECO "B06"]
[WhiteElo "2190"]
[BlackElo "2059"]
[Annotator "ChessBase"]
[PlyCount "113"]
[EventDate "2020.08.06"]
[EventType "swiss"]
[EventCountry "POL"]
[SourceTitle "playchess.com"]
[Source "ChessBase"]
[SourceQuality "1"]
[TimeControl "40/5400+30:1800+30"]

1. e4 {[%emt 0:00:00]} g6 {[%emt 0:00:00]} 2. d4 {[%emt 0:00:00]} Bg7 {[%emt 0:00:00]} 3. Nc3 {[%emt 0:00:00]} d6 {[%emt 0:00:02]} 4. Be3 {[%emt 0:00:00]} a6 {[%emt 0:00:10]} 5. Qd2 {[%emt 0:00:20]} b5 {[%emt 0:00:12]} 6. h4 {[%emt 0:00:32]} Nf6 {[%emt 0:00:28]} 7. f3 {[%emt 0:00:13]} h5 {[%emt 0:02:15]} 8. O-O-O {[%emt 0:00:47]} c6 {[%emt 0:00:08]} 9. Qe1 {[%emt 0:30:06]} Qc7 {[%emt 0:02:51]} 10. Kb1 {[%emt 0:08:55]} Nbd7 {[%emt 1:01:13]} 11. Nh3 {[%emt 0:02:02]} Nb6 {[%emt 0:00:30]} 12. Ng5 {[%emt 0:04:06]} b4 {[%emt 0:01:35]} 13. Ne2 {[%emt 0:00:05]} c5 {[%emt 0:00:44]} 14. Nc1 {[%emt 0:09:21]} Bb7 {[%emt 0:09:13]} 15. dxc5 {[%emt 0:20:01]} dxc5 {[%emt 0:00:09]} 16. Nd3 {[%emt 0:00:03]} Nfd7 {[%emt 0:03:06]} 17. Bf4 {[%emt 0:01:14]} e5 {[%emt 0:05:09]} 18. Bc1 {[%emt 0:01:47]} a5 {[%emt 0:00:09]} 19. g4 {[%emt 0:04:55]} c4 {[%emt 0:01:04]} 20. Nf2 {[%emt 0:00:02]} c3 {[%emt 0:00:17]} 21. gxh5 {[%emt 0:01:48]} Rxh5 {[%emt 0:00:15]} 22. Bh3 {[%emt 0:01:15]} Nc5 {[%emt 0:01:09]} 23. Qg1 {[%emt 0:06:54]} cxb2 {[%emt 0:02:11]} 24. Bxb2 {[%emt 0:00:14]} Nca4 {[%emt 0:03:22]} 25. Nd3 {[%emt 0:03:56]} Nc4 {[%emt 0:00:39]} 26. Rh2 {[%emt 0:03:27]} Ncxb2 {[%emt 0:01:01]} 27. Nxb2 {[%emt 0:00:01]} Nc3+ {[%emt 0:00:10]} 28. Ka1 {[%emt 0:00:10]} Nxd1 {[%emt 0:00:32]} 29. Nxd1 {[%emt 0:00:57]} Rd8 {[%emt 0:01:36]} 30. Bg4 {[%emt 0:00:13]} Rh8 {[%emt 0:01:10]} 31. Be6 {[%emt 0:01:25]} Rf8 {[%emt 0:02:05]} 32. Bb3 {[%emt 0:00:00]} Qd6 {[%emt 0:00:14]} 33. Nf2 {[%emt 0:00:00]} Bc6 {[%emt 0:00:49]} 34. Ne6 {[%emt 0:01:00]} fxe6 {[%emt 0:01:41]} 35. Qxg6+ {[%emt 0:00:01]} Ke7 {[%emt 0:00:29]} 36. Qxg7+ {[%emt 0:00:06]} Rf7 {[%emt 0:00:12]} 37. Qg5+ {[%emt 0:00:09]} Kd7 {[%emt 0:00:25]} 38. Nd3 {[%emt 0:00:50]} Kc7 {[%emt 0:01:01]} 39. Qe3 {[%emt 0:01:24]} Qd4+ {[%emt 0:00:28]} 40. Qxd4 {[%emt 0:00:00]} exd4 {[%emt 0:00:00]} 41. Nc5 {[%emt 0:03:14]} Kb6 {[%emt 0:31:12]} 42. Nxe6 {[%emt 0:00:27]} Rh8 {[%emt 0:00:31]} 43. Nxd4 {[%emt 0:14:57]} Rd7 {[%emt 0:00:15]} 44. Nxc6 {[%emt 0:00:13]} Rd1+ {[%emt 0:00:04]} 45. Kb2 {[%emt 0:00:03]} Kxc6 {[%emt 0:00:05]} 46. h5 {[%emt 0:00:51]} Kb5 {[%emt 0:01:34]} 47. h6 {[%emt 0:00:10]} a4 {[%emt 0:00:24]} 48. Rh5+ {[%emt 0:00:05]} Kb6 {[%emt 0:00:38]} 49. Bxa4 {[%emt 0:00:02]} Rd6 {[%emt 0:00:28]} 50. h7 {[%emt 0:00:30]} Rf6 {[%emt 0:00:06]} 51. Bd7 {[%emt 0:00:28]} Rxf3 {[%emt 0:00:53]} 52. Bf5 {[%emt 0:00:32]} Rg3 {[%emt 0:00:04]} 53. Rh2 {[%emt 0:00:58]} Kc5 {[%emt 0:00:08]} 54. Rd2 {[%emt 0:00:08]} Ra8 {[%emt 0:00:34]} 55. Rd7 {[%emt 0:03:02]} Re8 {[%emt 0:01:18]} 56. Rc7+ {[%emt 0:00:32]} Kd6 {[%emt 0:00:16]} 57. Rc8 {[%emt 0:00:10]} 1-0

[Event "4th Memorial Warakomska-A 2020"]
[Site "Suwalki"]
[Date "2020.08.09"]
[Round "5.12"]
[White "Korbal, Arkadiusz"]
[Black "Rosol, Alexander"]
[Result "1/2-1/2"]
[ECO "E73"]
[WhiteElo "2113"]
[BlackElo "1933"]
[Annotator "ChessBase"]
[PlyCount "120"]
[EventDate "2020.08.06"]
[EventType "swiss"]
[EventCountry "POL"]
[SourceTitle "playchess.com"]
[Source "ChessBase"]
[SourceQuality "1"]
[TimeControl "40/5400+30:1800+30"]

1. d4 {[%emt 0:00:00]} Nf6 {[%emt 0:00:00]} 2. c4 {[%emt 0:00:00]} g6 {[%emt 0:00:00]} 3. Nc3 {[%emt 0:00:02]} Bg7 {[%emt 0:00:09]} 4. e4 {[%emt 0:00:28]} d6 {[%emt 0:00:15]} 5. Be2 {[%emt 0:00:43]} O-O {[%emt 0:00:49]} 6. Be3 {[%emt 0:00:38]} a6 {[%emt 0:01:00]} 7. g4 {[%emt 0:07:12]} c5 {[%emt 0:02:41]} 8. d5 {[%emt 0:01:11]} b5 {[%emt 0:05:11]} 9. g5 {[%emt 0:01:10]} Nfd7 {[%emt 0:04:12]} 10. cxb5 {[%emt 0:03:11]} axb5 {[%emt 0:00:35]} 11. Bxb5 {[%emt 0:24:02]} Qa5 {[%emt 0:04:34]} 12. Nge2 {[%emt 0:00:20]} Ba6 {[%emt 0:07:28]} 13. Bxa6 {[%emt 0:01:20]} Nxa6 {[%emt 0:00:25]} 14. f4 {[%emt 0:04:42]} Rfb8 {[%emt 0:04:13]} 15. Rb1 {[%emt 0:01:34]} Nb4 {[%emt 0:10:53]} 16. a3 {[%emt 0:12:53]} Bxc3+ {[%emt 0:24:40]} 17. Nxc3 {[%emt 0:02:42]} Na2 {[%emt 0:00:16]} 18. Bd2 {[%emt 0:00:58]} Nxc3 {[%emt 0:00:37]} 19. Bxc3 {[%emt 0:00:23]} Qb5 {[%emt 0:02:13]} 20. Qe2 {[%emt 0:02:34]} Rxa3 {[%emt 0:02:42]} 21. Qxb5 {[%emt 0:00:12]} Rxb5 {[%emt 0:00:07]} 22. Kd2 {[%emt 0:01:02]} Ra4 {[%emt 0:02:14]} 23. Rhe1 {[%emt 0:02:35]} Rb7 {[%emt 0:03:37]} 24. Ra1 {[%emt 0:01:11]} Rba7 {[%emt 0:00:25]} 25. Rxa4 {[%emt 0:00:13]} Rxa4 {[%emt 0:00:02]} 26. Kd3 {[%emt 0:01:38]} Kf8 {[%emt 0:05:46]} 27. h4 {[%emt 0:00:40]} Nb6 {[%emt 0:08:36]} 28. h5 {[%emt 0:01:24]} Ra2 {[%emt 0:04:15]} 29. h6 {[%emt 0:04:55]} Ke8 {[%emt 0:02:24]} 30. Rb1 {[%emt 0:01:49]} Na4 {[%emt 0:02:09]} 31. Bg7 {[%emt 0:00:28]} Kd7 {[%emt 0:00:58]} 32. f5 {[%emt 0:05:03]} Kd8 {[%emt 0:01:27]} 33. fxg6 {[%emt 0:00:26]} fxg6 {[%emt 0:00:01]} 34. Kc4 {[%emt 0:00:31]} Nb6+ {[%emt 0:00:22]} 35. Kb5 {[%emt 0:01:37]} Nd7 {[%emt 0:00:01]} 36. Rf1 {[%emt 0:02:01]} Ra8 {[%emt 0:00:45]} 37. Bc3 {[%emt 0:01:11]} Rb8+ {[%emt 0:00:14]} 38. Kc4 {[%emt 0:01:13]} Ke8 {[%emt 0:00:32]} 39. Ra1 {[%emt 0:00:53]} Nb6+ {[%emt 0:00:12]} 40. Kd3 {[%emt 0:00:00]} Ra8 {[%emt 0:00:00]} 41. Rxa8+ {[%emt 0:20:43]} Nxa8 {[%emt 0:01:27]} 42. Ba5 {[%emt 0:00:04]} Kd7 {[%emt 0:00:37]} 43. Kc4 {[%emt 0:00:37]} Nc7 {[%emt 0:01:09]} 44. Bxc7 {[%emt 0:00:35]} Kxc7 {[%emt 0:00:01]} 45. Kb5 {[%emt 0:00:07]} Kb7 {[%emt 0:00:21]} 46. b3 {[%emt 0:00:05]} Kc7 {[%emt 0:01:03]} 47. Ka6 {[%emt 0:00:09]} Kc8 {[%emt 0:03:10]} 48. Kb6 {[%emt 0:00:09]} Kb8 {[%emt 0:01:40]} 49. Kc6 {[%emt 0:00:43]} Kc8 {[%emt 0:00:01]} 50. e5 {[%emt 0:00:22]} dxe5 {[%emt 0:00:57]} 51. Kxc5 {[%emt 0:00:05]} Kc7 {[%emt 0:00:24]} 52. Kc4 {[%emt 0:00:33]} Kd6 {[%emt 0:00:59]} 53. b4 {[%emt 0:00:06]} e4 {[%emt 0:00:18]} 54. Kd4 {[%emt 0:00:22]} e3 {[%emt 0:00:10]} 55. Kxe3 {[%emt 0:00:05]} Kxd5 {[%emt 0:00:04]} 56. Kf4 {[%emt 0:02:54]} e5+ {[%emt 0:00:52]} 57. Ke3 {[%emt 0:00:08]} Kc4 {[%emt 0:00:05]} 58. Ke4 {[%emt 0:00:09]} Kxb4 {[%emt 0:00:06]} 59. Kxe5 {[%emt 0:00:07]} Kc5 {[%emt 0:00:05]} 60. Kf6 {[%emt 0:01:06]} Kd6 {[%emt 0:00:05]} 1/2-1/2